[Event "Titled Tuesday Blitz November 07 Early 2023"]
[White "Rama, Tejas"]
[Black "Napoli, Nicolo"]
[WhiteFideId "30907381"]
[BlackFideId "813702"]
[WhiteElo "2492"]
[BlackElo "2320"]
[Result "0-1"]
[Round "6"]
[TimeControl "180+1"]
[Date "2023.11.07"]
[WhiteClock "0:00:06"]
[BlackClock "0:00:03"]
[Board "146"]

1. d4 {[%clk 0:03:00]}  g6 {[%clk 0:03:00]} 2. c4 {[%clk 0:03:00]}  Bg7 {[%clk 0:02:58]} 3. e4 {[%clk 0:03:00]}  d6 {[%clk 0:02:59]} 4. Nc3 {[%clk 0:02:59]}  Nc6 {[%clk 0:02:58]} 5. d5 {[%clk 0:02:43]}  Nd4 {[%clk 0:02:57]} 6. Be3 {[%clk 0:02:37]}  e5 {[%clk 0:02:57]} 7. dxe6 {[%clk 0:02:36]}  Nxe6 {[%clk 0:02:56]} 8. Nge2 {[%clk 0:02:31]}  Nf6 {[%clk 0:02:56]} 9. g3 {[%clk 0:02:29]}  O-O {[%clk 0:02:53]} 10. Bg2 {[%clk 0:02:28]}  Ng4 {[%clk 0:02:47]} 11. Bc1 {[%clk 0:02:19]}  Ng5 {[%clk 0:02:38]} 12. h3 {[%clk 0:01:50]}  Nh6 {[%clk 0:01:42]} 13. f4 {[%clk 0:01:42]}  Ne6 {[%clk 0:01:40]} 14. O-O {[%clk 0:01:41]}  f5 {[%clk 0:01:39]} 15. Be3 {[%clk 0:01:26]}  fxe4 {[%clk 0:01:35]} 16. g4 {[%clk 0:01:21]}  Nf5 {[%clk 0:01:36]} 17. gxf5 {[%clk 0:01:20]}  gxf5 {[%clk 0:01:36]} 18. Nd4 {[%clk 0:01:01]}  Rf6 {[%clk 0:01:11]} 19. Nd5 {[%clk 0:00:55]}  Nxd4 {[%clk 0:01:03]} 20. Bxd4 {[%clk 0:00:49]}  Rg6 {[%clk 0:01:00]} 21. Bxg7 {[%clk 0:00:44]}  Rxg7 {[%clk 0:01:01]} 22. Qd4 {[%clk 0:00:40]}  Kf7 {[%clk 0:00:55]} 23. Ne3 {[%clk 0:00:28]}  Be6 {[%clk 0:00:46]} 24. Rad1 {[%clk 0:00:24]}  Qh4 {[%clk 0:00:45]} 25. Kh1 {[%clk 0:00:23]}  Rag8 {[%clk 0:00:44]} 26. Rd2 {[%clk 0:00:19]}  Rg3 {[%clk 0:00:26]} 27. c5 {[%clk 0:00:12]}  d5 {[%clk 0:00:20]} 28. Kh2 {[%clk 0:00:07]}  c6 {[%clk 0:00:12]} 29. Rdf2 {[%clk 0:00:06]}  R8g6 {[%clk 0:00:06]} 30. Qd2 {[%clk 0:00:04]}  Rh6 {[%clk 0:00:06]} 31. Rh1 {[%clk 0:00:02]}  Rhg6 {[%clk 0:00:05]} 32. Kg1 {[%clk 0:00:02]}  a6 {[%clk 0:00:03]} 33. Kf1 {[%clk 0:00:03]}  Qh5 {[%clk 0:00:02]} 34. b4 {[%clk 0:00:03]}  Qh6 {[%clk 0:00:02]} 35. Nd1 {[%clk 0:00:03]}  Qg7 {[%clk 0:00:02]} 36. Ne3 {[%clk 0:00:03]}  Qa1+ {[%clk 0:00:03]} 37. Qe1 {[%clk 0:00:04]}  Qd4 {[%clk 0:00:01]} 38. Nd1 {[%clk 0:00:04]}  Qc4+ {[%clk 0:00:01]} 39. Qe2 {[%clk 0:00:04]}  Qxb4 {[%clk 0:00:01]} 40. h4 {[%clk 0:00:05]}  Qxc5 {[%clk 0:00:02]} 41. h5 {[%clk 0:00:05]}  R6g4 {[%clk 0:00:03]} 42. h6 {[%clk 0:00:05]}  d4 {[%clk 0:00:03]} 43. Qe1 {[%clk 0:00:05]}  Bc4+ {[%clk 0:00:03]} 44. Kg1 {[%clk 0:00:05]}  e3 {[%clk 0:00:03]} 45. Rf3 {[%clk 0:00:06]}  Rxf3 {[%clk 0:00:02]} 46. Rh4 {[%clk 0:00:06]}  Rfg3 {[%clk 0:00:02]} 47. Rxg4 {[%clk 0:00:07]}  Rxg4 {[%clk 0:00:03]} 48. Kh2 {[%clk 0:00:07]}  Bd5 {[%clk 0:00:03]} 49. Bf3 {[%clk 0:00:06]}  Bxf3 {[%clk 0:00:03]} 0-1


[Site "https://www.chess.com"]

[Event "Titled Tuesday Blitz November 07 Early 2023"]
[White "Balla, Tamas-Kristof"]
[Black "Kopczynski, Michal"]
[WhiteFideId "1208497"]
[BlackFideId "1124200"]
[WhiteElo "2311"]
[BlackElo "2486"]
[Result "1-0"]
[Round "6"]
[TimeControl "180+1"]
[Date "2023.11.07"]
[WhiteClock "0:00:10"]
[BlackClock "0:00:04"]
[Board "148"]

1. e4 {[%clk 0:03:00]}  b6 {[%clk 0:03:00]} 2. d4 {[%clk 0:03:00]}  Bb7 {[%clk 0:03:01]} 3. Bd3 {[%clk 0:03:01]}  e6 {[%clk 0:03:01]} 4. c3 {[%clk 0:02:57]}  Nf6 {[%clk 0:03:02]} 5. e5 {[%clk 0:02:55]}  Bxg2 {[%clk 0:02:58]} 6. exf6 {[%clk 0:02:38]}  Qxf6 {[%clk 0:02:57]} 7. Qg4 {[%clk 0:02:16]}  Bxh1 {[%clk 0:02:55]} 8. Bg5 {[%clk 0:02:17]}  h5 {[%clk 0:02:47]} 9. Qh4 {[%clk 0:02:13]}  Be7 {[%clk 0:02:38]} 10. Bxf6 {[%clk 0:02:11]}  Bxf6 {[%clk 0:02:39]} 11. Qg3 {[%clk 0:02:10]}  Bc6 {[%clk 0:02:30]} 12. Nd2 {[%clk 0:02:04]}  d6 {[%clk 0:02:25]} 13. Ne4 {[%clk 0:01:59]}  Nd7 {[%clk 0:02:25]} 14. O-O-O {[%clk 0:01:38]}  O-O-O {[%clk 0:02:21]} 15. Qe3 {[%clk 0:01:24]}  Be7 {[%clk 0:02:14]} 16. Ne2 {[%clk 0:01:22]}  Nf6 {[%clk 0:02:03]} 17. Ba6+ {[%clk 0:01:16]}  Kb8 {[%clk 0:02:02]} 18. Nxf6 {[%clk 0:01:12]}  Bxf6 {[%clk 0:02:03]} 19. d5 {[%clk 0:00:58]}  Bxd5 {[%clk 0:01:43]} 20. Nd4 {[%clk 0:00:48]}  g5 {[%clk 0:01:09]} 21. Qd3 {[%clk 0:00:48]}  Be5 {[%clk 0:00:58]} 22. Qb5 {[%clk 0:00:42]}  Bxd4 {[%clk 0:00:39]} 23. Rxd4 {[%clk 0:00:41]}  c6 {[%clk 0:00:36]} 24. Qa4 {[%clk 0:00:33]}  Kc7 {[%clk 0:00:23]} 25. Qd1 {[%clk 0:00:28]}  b5 {[%clk 0:00:21]} 26. c4 {[%clk 0:00:27]}  Bxc4 {[%clk 0:00:20]} 27. Rxc4 {[%clk 0:00:21]}  bxc4 {[%clk 0:00:21]} 28. Bxc4 {[%clk 0:00:21]}  d5 {[%clk 0:00:20]} 29. Bd3 {[%clk 0:00:21]}  e5 {[%clk 0:00:19]} 30. Qa4 {[%clk 0:00:17]}  Ra8 {[%clk 0:00:15]} 31. Qa5+ {[%clk 0:00:17]}  Kd6 {[%clk 0:00:14]} 32. Qb4+ {[%clk 0:00:17]}  Ke6 {[%clk 0:00:15]} 33. Qc5 {[%clk 0:00:17]}  Rhc8 {[%clk 0:00:14]} 34. f3 {[%clk 0:00:17]}  Rc7 {[%clk 0:00:13]} 35. Qe3 {[%clk 0:00:17]}  f6 {[%clk 0:00:12]} 36. Qd2 {[%clk 0:00:17]}  Rb8 {[%clk 0:00:12]} 37. Bc2 {[%clk 0:00:17]}  Rcb7 {[%clk 0:00:13]} 38. b3 {[%clk 0:00:17]}  a5 {[%clk 0:00:12]} 39. Qd3 {[%clk 0:00:18]}  a4 {[%clk 0:00:12]} 40. Qf5+ {[%clk 0:00:18]}  Ke7 {[%clk 0:00:13]} 41. Qh7+ {[%clk 0:00:19]}  Kd6 {[%clk 0:00:13]} 42. Qg6 {[%clk 0:00:18]}  Rf8 {[%clk 0:00:10]} 43. bxa4 {[%clk 0:00:15]}  c5 {[%clk 0:00:10]} 44. Qxh5 {[%clk 0:00:15]}  c4 {[%clk 0:00:10]} 45. a5 {[%clk 0:00:15]}  d4 {[%clk 0:00:10]} 46. Qh6 {[%clk 0:00:15]}  Rff7 {[%clk 0:00:09]} 47. Be4 {[%clk 0:00:14]}  Ra7 {[%clk 0:00:09]} 48. Qg6 {[%clk 0:00:14]}  d3 {[%clk 0:00:08]} 49. a6 {[%clk 0:00:14]}  Kc5 {[%clk 0:00:07]} 50. Qf5 {[%clk 0:00:14]}  Kd4 {[%clk 0:00:07]} 51. Qg4 {[%clk 0:00:12]}  Kc3 {[%clk 0:00:05]} 52. Qg1 {[%clk 0:00:12]}  Rxa6 {[%clk 0:00:04]} 53. Qe1+ {[%clk 0:00:11]}  Kd4 {[%clk 0:00:04]} 54. Qf2+ {[%clk 0:00:09]}  Kc3 {[%clk 0:00:04]} 55. Qb2# {[%clk 0:00:10]} 1-0


[Site "https://www.chess.com"]

[Event "Titled Tuesday Blitz November 07 Early 2023"]
[White "Willy, Stephen"]
[Black "Bogaudinov, Rushan"]
[WhiteFideId "30981468"]
[BlackFideId "4129288"]
[WhiteElo "2486"]
[BlackElo "2314"]
[Result "1-0"]
[Round "6"]
[TimeControl "180+1"]
[Date "2023.11.07"]
[WhiteClock "0:00:12"]
[BlackClock "0:00:00"]
[Board "149"]

1. e4 {[%clk 0:03:00]}  b6 {[%clk 0:02:23]} 2. d4 {[%clk 0:02:59]}  Bb7 {[%clk 0:02:24]} 3. Bd3 {[%clk 0:02:59]}  e6 {[%clk 0:02:24]} 4. Nc3 {[%clk 0:02:54]}  Bb4 {[%clk 0:02:23]} 5. Ne2 {[%clk 0:02:50]}  c5 {[%clk 0:02:23]} 6. O-O {[%clk 0:02:46]}  cxd4 {[%clk 0:02:22]} 7. Nxd4 {[%clk 0:02:45]}  Nc6 {[%clk 0:02:22]} 8. Be3 {[%clk 0:02:43]}  Nf6 {[%clk 0:02:21]} 9. Nxc6 {[%clk 0:02:27]}  Bxc6 {[%clk 0:02:20]} 10. e5 {[%clk 0:02:28]}  Bxc3 {[%clk 0:02:10]} 11. bxc3 {[%clk 0:02:23]}  Nd5 {[%clk 0:02:10]} 12. Bd2 {[%clk 0:02:21]}  Qh4 {[%clk 0:02:09]} 13. f4 {[%clk 0:02:11]}  f5 {[%clk 0:02:00]} 14. exf6 {[%clk 0:02:04]}  Nxf6 {[%clk 0:01:59]} 15. Qe2 {[%clk 0:02:05]}  O-O {[%clk 0:01:56]} 16. Rae1 {[%clk 0:01:59]}  Ng4 {[%clk 0:01:42]} 17. h3 {[%clk 0:01:58]}  Nf6 {[%clk 0:01:40]} 18. Qf2 {[%clk 0:01:57]}  Qh5 {[%clk 0:01:33]} 19. Re5 {[%clk 0:01:45]}  Qf7 {[%clk 0:01:29]} 20. Qh4 {[%clk 0:01:45]}  g6 {[%clk 0:01:19]} 21. f5 {[%clk 0:01:28]}  exf5 {[%clk 0:01:14]} 22. Bh6 {[%clk 0:01:22]}  Rfe8 {[%clk 0:01:10]} 23. Rexf5 {[%clk 0:01:18]}  gxf5 {[%clk 0:01:02]} 24. Rxf5 {[%clk 0:01:19]}  Re6 {[%clk 0:00:54]} 25. Bg5 {[%clk 0:01:13]}  Qh5 {[%clk 0:00:33]} 26. Qg3 {[%clk 0:00:59]}  Kf7 {[%clk 0:00:26]} 27. Bxf6 {[%clk 0:00:57]}  Qd1+ {[%clk 0:00:26]} 28. Rf1 {[%clk 0:00:55]}  Qxf1+ {[%clk 0:00:25]} 29. Bxf1 {[%clk 0:00:55]}  Rxf6 {[%clk 0:00:26]} 30. Bc4+ {[%clk 0:00:51]}  d5 {[%clk 0:00:22]} 31. Qc7+ {[%clk 0:00:51]}  Kg8 {[%clk 0:00:20]} 32. Bd3 {[%clk 0:00:50]}  h6 {[%clk 0:00:13]} 33. Qh7+ {[%clk 0:00:36]}  Kf8 {[%clk 0:00:12]} 34. Bf5 {[%clk 0:00:33]}  Re8 {[%clk 0:00:11]} 35. Qh8+ {[%clk 0:00:30]}  Ke7 {[%clk 0:00:11]} 36. Qg7+ {[%clk 0:00:31]}  Rf7 {[%clk 0:00:12]} 37. Qe5+ {[%clk 0:00:29]}  Kf8 {[%clk 0:00:11]} 38. Qd6+ {[%clk 0:00:29]}  Kg7 {[%clk 0:00:10]} 39. Qg6+ {[%clk 0:00:22]}  Kf8 {[%clk 0:00:09]} 40. Qxh6+ {[%clk 0:00:23]}  Ke7 {[%clk 0:00:07]} 41. Bg6 {[%clk 0:00:23]}  Bd7 {[%clk 0:00:04]} 42. Qg5+ {[%clk 0:00:18]}  Kf8 {[%clk 0:00:04]} 43. Bxf7 {[%clk 0:00:18]}  Kxf7 {[%clk 0:00:05]} 44. Qxd5+ {[%clk 0:00:18]}  Be6 {[%clk 0:00:04]} 45. Qh5+ {[%clk 0:00:18]}  Ke7 {[%clk 0:00:04]} 46. c4 {[%clk 0:00:18]}  Rf8 {[%clk 0:00:04]} 47. Qe5 {[%clk 0:00:17]}  Rf5 {[%clk 0:00:04]} 48. Qc7+ {[%clk 0:00:17]}  Kf6 {[%clk 0:00:04]} 49. Qxa7 {[%clk 0:00:17]}  Rc5 {[%clk 0:00:03]} 50. Qxb6 {[%clk 0:00:16]}  Rxc4 {[%clk 0:00:04]} 51. h4 {[%clk 0:00:13]}  Rxc2 {[%clk 0:00:03]} 52. h5 {[%clk 0:00:11]}  Rxa2 {[%clk 0:00:03]} 53. h6 {[%clk 0:00:11]}  Ra1+ {[%clk 0:00:02]} 54. Kh2 {[%clk 0:00:11]}  Ra8 {[%clk 0:00:02]} 55. h7 {[%clk 0:00:10]}  Rh8 {[%clk 0:00:02]} 56. Qd4+ {[%clk 0:00:10]}  Kg6 {[%clk 0:00:02]} 57. Qxh8 {[%clk 0:00:11]}  Bf5 {[%clk 0:00:02]} 58. Qg8+ {[%clk 0:00:11]}  Kf6 {[%clk 0:00:00]} 59. h8=Q+ {[%clk 0:00:12]} 1-0


[Site "https://www.chess.com"]

[Event "Titled Tuesday Blitz November 07 Early 2023"]
[White "Pujari, Rucha"]
[Black "Rasmussen, Casper"]
[WhiteFideId "5024528"]
[BlackFideId "1402005"]
[WhiteElo "2483"]
[BlackElo "2305"]
[Result "1-0"]
[Round "6"]
[TimeControl "180+1"]
[Date "2023.11.07"]
[WhiteClock "0:00:10"]
[BlackClock "0:00:00"]
[Board "150"]

1. d4 {[%clk 0:03:00]}  d5 {[%clk 0:02:47]} 2. c4 {[%clk 0:03:01]}  c6 {[%clk 0:02:47]} 3. cxd5 {[%clk 0:03:01]}  cxd5 {[%clk 0:02:47]} 4. Nc3 {[%clk 0:03:01]}  Nf6 {[%clk 0:02:47]} 5. Bf4 {[%clk 0:03:02]}  a6 {[%clk 0:02:48]} 6. e3 {[%clk 0:03:02]}  Nc6 {[%clk 0:02:47]} 7. Rc1 {[%clk 0:03:03]}  e6 {[%clk 0:02:45]} 8. Nf3 {[%clk 0:03:03]}  Bd6 {[%clk 0:02:46]} 9. Bg5 {[%clk 0:03:03]}  h6 {[%clk 0:02:46]} 10. Bh4 {[%clk 0:03:03]}  O-O {[%clk 0:02:46]} 11. Bd3 {[%clk 0:03:03]}  Bd7 {[%clk 0:02:47]} 12. O-O {[%clk 0:03:03]}  b5 {[%clk 0:02:47]} 13. a3 {[%clk 0:03:01]}  Na5 {[%clk 0:02:47]} 14. Ne5 {[%clk 0:02:51]}  Be7 {[%clk 0:02:36]} 15. Bb1 {[%clk 0:02:43]}  Nh7 {[%clk 0:01:58]} 16. Qc2 {[%clk 0:02:30]}  f5 {[%clk 0:01:58]} 17. Bxe7 {[%clk 0:02:23]}  Qxe7 {[%clk 0:01:59]} 18. Ng6 {[%clk 0:02:23]}  Qf7 {[%clk 0:01:57]} 19. Nxf8 {[%clk 0:02:23]}  Qxf8 {[%clk 0:01:58]} 20. Ne2 {[%clk 0:02:18]}  Rc8 {[%clk 0:01:57]} 21. Qd3 {[%clk 0:01:59]}  Re8 {[%clk 0:01:53]} 22. Nf4 {[%clk 0:01:55]}  g5 {[%clk 0:01:46]} 23. Ng6 {[%clk 0:01:54]}  Qg7 {[%clk 0:01:38]} 24. Ne5 {[%clk 0:01:54]}  Nc4 {[%clk 0:01:38]} 25. f4 {[%clk 0:01:29]}  Nxb2 {[%clk 0:01:20]} 26. Qe2 {[%clk 0:01:27]}  Nc4 {[%clk 0:01:20]} 27. Ba2 {[%clk 0:01:19]}  Nf6 {[%clk 0:01:02]} 28. Bxc4 {[%clk 0:01:11]}  dxc4 {[%clk 0:00:37]} 29. fxg5 {[%clk 0:01:05]}  hxg5 {[%clk 0:00:36]} 30. a4 {[%clk 0:01:03]}  Ne4 {[%clk 0:00:25]} 31. Qh5 {[%clk 0:01:02]}  Nf6 {[%clk 0:00:19]} 32. Qd1 {[%clk 0:00:53]}  Rc8 {[%clk 0:00:18]} 33. axb5 {[%clk 0:00:36]}  axb5 {[%clk 0:00:18]} 34. Ra1 {[%clk 0:00:37]}  Bc6 {[%clk 0:00:10]} 35. Nxc6 {[%clk 0:00:24]}  Rxc6 {[%clk 0:00:10]} 36. Ra8+ {[%clk 0:00:25]}  Kh7 {[%clk 0:00:10]} 37. Qf3 {[%clk 0:00:22]}  Rc7 {[%clk 0:00:07]} 38. Qh3+ {[%clk 0:00:17]}  Kg6 {[%clk 0:00:05]} 39. Ra6 {[%clk 0:00:13]}  Qf7 {[%clk 0:00:00]} 40. g4 {[%clk 0:00:10]} 1-0


[Site "https://www.chess.com"]

[Event "Titled Tuesday Blitz November 07 Early 2023"]
[White "Lopez Martinez, Josep Manuel"]
[Black "Garrido, Denis"]
[WhiteFideId "2212943"]
[BlackFideId "601217"]
[WhiteElo "2476"]
[BlackElo "2304"]
[Result "1-0"]
[Round "6"]
[TimeControl "180+1"]
[Date "2023.11.07"]
[WhiteClock "0:00:09"]
[BlackClock "0:00:17"]
[Board "151"]

1. e4 {[%clk 0:03:00]}  c6 {[%clk 0:02:59]} 2. d3 {[%clk 0:02:59]}  d5 {[%clk 0:02:59]} 3. Nd2 {[%clk 0:02:58]}  e5 {[%clk 0:02:59]} 4. Ngf3 {[%clk 0:02:55]}  Bd6 {[%clk 0:02:58]} 5. g3 {[%clk 0:02:51]}  Ne7 {[%clk 0:02:58]} 6. Bg2 {[%clk 0:02:51]}  O-O {[%clk 0:02:58]} 7. O-O {[%clk 0:02:51]}  f5 {[%clk 0:02:58]} 8. c3 {[%clk 0:02:47]}  a5 {[%clk 0:02:52]} 9. Re1 {[%clk 0:02:37]}  Ng6 {[%clk 0:02:44]} 10. b3 {[%clk 0:02:07]}  f4 {[%clk 0:02:34]} 11. exd5 {[%clk 0:01:59]}  cxd5 {[%clk 0:02:33]} 12. c4 {[%clk 0:01:59]}  Be6 {[%clk 0:02:18]} 13. Bb2 {[%clk 0:01:56]}  Nc6 {[%clk 0:02:14]} 14. cxd5 {[%clk 0:01:48]}  Bxd5 {[%clk 0:02:13]} 15. Nc4 {[%clk 0:01:47]}  Re8 {[%clk 0:01:49]} 16. Rc1 {[%clk 0:01:36]}  a4 {[%clk 0:01:34]} 17. bxa4 {[%clk 0:01:25]}  Bc7 {[%clk 0:01:21]} 18. Qb3 {[%clk 0:01:14]}  Qd7 {[%clk 0:01:18]} 19. Rcd1 {[%clk 0:01:02]}  Kh8 {[%clk 0:01:10]} 20. Qb5 {[%clk 0:00:57]}  Rad8 {[%clk 0:00:49]} 21. d4 {[%clk 0:00:37]}  fxg3 {[%clk 0:00:48]} 22. hxg3 {[%clk 0:00:33]}  e4 {[%clk 0:00:46]} 23. Nfe5 {[%clk 0:00:29]}  Ncxe5 {[%clk 0:00:46]} 24. Nxe5 {[%clk 0:00:29]}  Qf5 {[%clk 0:00:42]} 25. Qe2 {[%clk 0:00:16]}  Bxe5 {[%clk 0:00:38]} 26. dxe5 {[%clk 0:00:16]}  Nxe5 {[%clk 0:00:38]} 27. Bxe5 {[%clk 0:00:16]}  Qxe5 {[%clk 0:00:34]} 28. Bxe4 {[%clk 0:00:14]}  Bc6 {[%clk 0:00:27]} 29. Rxd8 {[%clk 0:00:13]}  Rxd8 {[%clk 0:00:27]} 30. Bxc6 {[%clk 0:00:13]}  Qxe2 {[%clk 0:00:26]} 31. Rxe2 {[%clk 0:00:13]}  bxc6 {[%clk 0:00:27]} 32. Rc2 {[%clk 0:00:13]}  Rd6 {[%clk 0:00:22]} 33. a5 {[%clk 0:00:13]}  Kg8 {[%clk 0:00:22]} 34. Rc5 {[%clk 0:00:12]}  Kf7 {[%clk 0:00:19]} 35. a6 {[%clk 0:00:12]}  Ke7 {[%clk 0:00:18]} 36. a7 {[%clk 0:00:11]}  Rd8 {[%clk 0:00:19]} 37. Rxc6 {[%clk 0:00:12]}  Ra8 {[%clk 0:00:20]} 38. Rc7+ {[%clk 0:00:12]}  Kf6 {[%clk 0:00:20]} 39. Rb7 {[%clk 0:00:12]}  h5 {[%clk 0:00:20]} 40. Kg2 {[%clk 0:00:13]}  g5 {[%clk 0:00:20]} 41. a4 {[%clk 0:00:13]}  Ke6 {[%clk 0:00:20]} 42. a5 {[%clk 0:00:13]}  Kd6 {[%clk 0:00:20]} 43. a6 {[%clk 0:00:13]}  Kc6 {[%clk 0:00:21]} 44. Kf3 {[%clk 0:00:12]}  h4 {[%clk 0:00:21]} 45. Kg4 {[%clk 0:00:11]}  Rh8 {[%clk 0:00:17]} 46. Rb8 {[%clk 0:00:09]} 1-0


[Site "https://www.chess.com"]

[Event "Titled Tuesday Blitz November 07 Early 2023"]
[White "Dinu, Dumitru-Daniel"]
[Black "ilya2700"]
[WhiteFideId "1208403"]
[WhiteElo "2476"]
[BlackElo "2303"]
[Result "1-0"]
[Round "6"]
[TimeControl "180+1"]
[Date "2023.11.07"]
[WhiteClock "0:01:03"]
[BlackClock "0:00:00"]
[Board "152"]

1. e4 {[%clk 0:03:00]}  c5 {[%clk 0:02:59]} 2. Nf3 {[%clk 0:02:59]}  e6 {[%clk 0:02:59]} 3. b3 {[%clk 0:02:59]}  d5 {[%clk 0:02:59]} 4. exd5 {[%clk 0:02:59]}  exd5 {[%clk 0:03:00]} 5. Bb2 {[%clk 0:03:00]}  Nc6 {[%clk 0:03:01]} 6. Bb5 {[%clk 0:03:00]}  Nf6 {[%clk 0:02:59]} 7. O-O {[%clk 0:03:00]}  Bd6 {[%clk 0:02:59]} 8. Re1+ {[%clk 0:03:00]}  Be6 {[%clk 0:02:58]} 9. d4 {[%clk 0:03:00]}  O-O {[%clk 0:02:57]} 10. dxc5 {[%clk 0:03:00]}  Bxc5 {[%clk 0:02:58]} 11. Bxc6 {[%clk 0:02:54]}  bxc6 {[%clk 0:02:58]} 12. Bd4 {[%clk 0:02:54]}  Bd6 {[%clk 0:02:53]} 13. Nbd2 {[%clk 0:02:52]}  Bg4 {[%clk 0:02:45]} 14. h3 {[%clk 0:02:51]}  Bh5 {[%clk 0:02:45]} 15. c4 {[%clk 0:02:49]}  c5 {[%clk 0:02:39]} 16. Be5 {[%clk 0:02:47]}  Bxe5 {[%clk 0:02:17]} 17. Rxe5 {[%clk 0:02:44]}  Re8 {[%clk 0:02:18]} 18. Rxe8+ {[%clk 0:02:42]}  Qxe8 {[%clk 0:02:19]} 19. g4 {[%clk 0:02:41]}  Bg6 {[%clk 0:02:13]} 20. cxd5 {[%clk 0:02:42]}  Nxd5 {[%clk 0:02:14]} 21. Nc4 {[%clk 0:02:42]}  Nc3 {[%clk 0:02:08]} 22. Qd2 {[%clk 0:02:34]}  Ne4 {[%clk 0:01:55]} 23. Qe3 {[%clk 0:02:32]}  Nf6 {[%clk 0:01:46]} 24. Re1 {[%clk 0:02:29]}  Qxe3 {[%clk 0:01:44]} 25. Rxe3 {[%clk 0:02:30]}  Rd8 {[%clk 0:01:39]} 26. Nfe5 {[%clk 0:02:26]}  Be4 {[%clk 0:01:14]} 27. f3 {[%clk 0:02:04]}  Bb7 {[%clk 0:01:13]} 28. Kf2 {[%clk 0:02:04]}  Rd1 {[%clk 0:01:01]} 29. Rd3 {[%clk 0:02:03]}  Rxd3 {[%clk 0:00:47]} 30. Nxd3 {[%clk 0:02:04]}  Nd7 {[%clk 0:00:44]} 31. Nce5 {[%clk 0:01:58]}  Nxe5 {[%clk 0:00:27]} 32. Nxe5 {[%clk 0:01:58]}  Bd5 {[%clk 0:00:21]} 33. Ke3 {[%clk 0:01:50]}  f6 {[%clk 0:00:21]} 34. Nc4 {[%clk 0:01:31]}  Kf7 {[%clk 0:00:19]} 35. Nd2 {[%clk 0:01:24]}  Ke6 {[%clk 0:00:18]} 36. Nb1 {[%clk 0:01:19]}  h6 {[%clk 0:00:15]} 37. Nc3 {[%clk 0:01:19]}  g5 {[%clk 0:00:12]} 38. Ne2 {[%clk 0:01:12]}  Ke5 {[%clk 0:00:11]} 39. Ng3 {[%clk 0:01:07]}  Be6 {[%clk 0:00:09]} 40. Ne4 {[%clk 0:01:07]}  c4 {[%clk 0:00:07]} 41. b4 {[%clk 0:01:07]}  f5 {[%clk 0:00:05]} 42. Nc5 {[%clk 0:01:07]}  fxg4 {[%clk 0:00:03]} 43. hxg4 {[%clk 0:01:06]}  Bf7 {[%clk 0:00:02]} 44. Na4 {[%clk 0:01:04]}  h5 {[%clk 0:00:01]} 45. gxh5 {[%clk 0:01:02]}  Bxh5 {[%clk 0:00:00]} 46. Nc3 {[%clk 0:01:03]} 1-0


[Site "https://www.chess.com"]

[Event "Titled Tuesday Blitz November 07 Early 2023"]
[White "Lesbekova, Assel"]
[Black "Remolar Gallen, Jose"]
[WhiteFideId "13713248"]
[BlackFideId "2215187"]
[WhiteElo "2301"]
[BlackElo "2473"]
[Result "0-1"]
[Round "6"]
[TimeControl "180+1"]
[Date "2023.11.07"]
[WhiteClock "0:01:39"]
[BlackClock "0:01:04"]
[Board "153"]

1. e4 {[%clk 0:03:00]}  g6 {[%clk 0:02:58]} 2. h4 {[%clk 0:03:00]}  h5 {[%clk 0:02:56]} 3. d4 {[%clk 0:02:56]}  c6 {[%clk 0:02:55]} 4. Nc3 {[%clk 0:02:56]}  d5 {[%clk 0:02:55]} 5. Be2 {[%clk 0:02:49]}  Bg7 {[%clk 0:02:53]} 6. Be3 {[%clk 0:02:43]}  Nf6 {[%clk 0:02:47]} 7. exd5 {[%clk 0:02:39]}  cxd5 {[%clk 0:02:47]} 8. f3 {[%clk 0:02:39]}  Nc6 {[%clk 0:02:46]} 9. Nh3 {[%clk 0:02:39]}  Bxh3 {[%clk 0:02:45]} 10. Rxh3 {[%clk 0:02:38]}  Qd7 {[%clk 0:02:41]} 11. Qd2 {[%clk 0:02:38]}  O-O-O {[%clk 0:02:32]} 12. O-O-O {[%clk 0:02:34]}  Ne8 {[%clk 0:02:16]} 13. Bb5 {[%clk 0:02:22]}  Nd6 {[%clk 0:02:14]} 14. Be2 {[%clk 0:02:16]}  Nf5 {[%clk 0:02:10]} 15. Kb1 {[%clk 0:02:12]}  Ncxd4 {[%clk 0:02:03]} 16. g4 {[%clk 0:02:08]}  Nxe3 {[%clk 0:01:57]} 17. Qxe3 {[%clk 0:02:07]}  e5 {[%clk 0:01:45]} 18. f4 {[%clk 0:02:02]}  hxg4 {[%clk 0:01:39]} 19. Rg3 {[%clk 0:02:00]}  Rhe8 {[%clk 0:01:15]} 20. Bxg4 {[%clk 0:01:51]}  f5 {[%clk 0:01:15]} 21. Bh3 {[%clk 0:01:50]}  exf4 {[%clk 0:01:12]} 22. Qxf4 {[%clk 0:01:49]}  Be5 {[%clk 0:01:12]} 23. Qf2 {[%clk 0:01:45]}  Bxg3 {[%clk 0:01:11]} 24. Qxd4 {[%clk 0:01:45]}  Kb8 {[%clk 0:01:06]} 25. Nxd5 {[%clk 0:01:39]}  Qxd5 {[%clk 0:01:04]} 0-1


[Site "https://www.chess.com"]